bitfinex/quotes_ETHUSD_20230119
["timestamp","ask_amount","ask_price","bid_price","bid_amount"]
[1674107325175,7.72120333,1528.1,1527.9,0.1439256]
[1674107325444,7.72120333,1528.1,1527.8,1.439256]
[1674107325611,0.052,1527.9,1527.8,1.439256]
[1674107327524,0.052,1527.9,1527.8,2.57603229]
[1674107327717,1e-08,1527.9,1527.8,9.12138229]
[1674107327943,1e-08,1527.9,1527.8,10.12138229]
[1674107328132,1e-08,1527.9,1527.8,13.37280962]
[1674107328342,1e-08,1527.9,1527.8,12.68738229]
[1674107328558,1e-08,1527.9,1527.8,7.84726667]
[1674107328791,1e-08,1527.9,1527.8,12.68738229]
[1674107329120,1e-08,1527.9,1527.8,14.39261667]
[1674107331859,1e-08,1527.9,1527.8,20.93796667]
[1674107334397,32.86500701,1528.3,1527.8,21.00396667]
[1674107334719,32.86500701,1528.3,1528.0,1.0]
[1674107334923,15.35510701,1528.3,1528.0,1.0]
[1674107335621,1.24095334,1528.3,1528.0,14.08892]
[1674107335970,1.24095334,1528.3,1528.0,16.73638167]
[1674107337042,0.55480001,1528.3,1528.0,18.02238167]
[1674107337807,0.06400001,1528.3,1528.0,18.02238167]
[1674107339857,0.06400001,1528.3,1528.0,17.02238167]
[1674107340087,0.75015334,1528.3,1528.0,2.64746167]
[1674107340223,0.75015334,1528.3,1527.9,35.82428667]
[1674107342388,0.68615333,1528.3,1527.9,35.89028667]
[1674107343061,15.35405701,1528.4,1527.9,35.89028667]
[1674107343279,15.35405701,1528.4,1528.0,3.58902867]
[1674107345370,15.35405701,1528.4,1527.9,35.89028667]
[1674107347218,0.68615333,1528.3,1527.9,35.89028667]
[1674107347449,15.35405701,1528.4,1527.9,35.89028667]
[1674107349829,1.713367,1528.3,1527.9,19.4117]
[1674107350152,16.06200333,1528.3,1527.9,19.4117]
[1674107350354,15.06200333,1528.3,1527.9,19.4117]
[1674107350610,15.12600334,1528.3,1527.9,19.4117]
[1674107350830,18.0397731,1528.3,1527.9,19.4117]
[1674107353015,19.06698677,1528.3,1527.9,19.4117]
[1674107356384,17.77798677,1528.3,1527.9,19.4117]
[1674107356600,11.23440677,1528.3,1527.9,19.4117]
[1674107357032,0.68615333,1528.2,1527.9,19.4117]
[1674107357569,8.32063701,1528.3,1527.9,19.4117]
[1674107357990,0.68615333,1528.2,1527.9,19.4117]
[1674107358216,1.77736701,1528.3,1527.9,27.24561]
[1674107358538,1.77736701,1528.3,1528.0,2.724561]
[1674107358766,0.06400001,1528.3,1528.1,1.288]
[1674107358976,0.06400001,1528.3,1528.2,1.0]
[1674107359130,0.06400001,1528.3,1528.2,1.883186]
[1674107359344,0.06400001,1528.3,1528.2,8.426826]
[1674107359939,0.054,1528.3,1528.2,8.438826]
[1674107360153,0.68615333,1528.4,1528.2,8.492826]
[1674107360303,9.92057584,1528.5,1528.3,0.8492826]
[1674107360514,1.85017584,1528.5,1528.2,8.492826]
[1674107362043,1.85017584,1528.5,1528.2,7.492826]
[1674107364153,1.85017584,1528.5,1528.2,0.949186]
[1674107364322,1.85017584,1528.5,1528.2,0.066]
[1674107366244,0.82296217,1528.5,1528.2,0.066]
[1674107367134,1.85017584,1528.5,1528.2,0.066]
[1674107369164,1.84817584,1528.5,1528.2,0.014]
[1674107369378,1.78617583,1528.5,1528.1,23.71542]
[1674107369683,1.78617583,1528.5,1528.1,27.14254744]
[1674107370815,0.75896216,1528.5,1528.1,27.14254744]
[1674107371375,1.78617583,1528.5,1528.1,20.59868744]
[1674107371580,10.00819172,1528.5,1528.1,17.17156]
[1674107373024,8.32854583,1528.5,1528.1,17.17156]
[1674107374020,0.68615333,1528.4,1528.1,17.17156]
[1674107374802,8.39254584,1528.5,1528.1,17.17156]
[1674107375013,0.68615333,1528.4,1528.1,17.17156]
[1674107375231,8.39254584,1528.5,1528.1,17.17156]
[1674107375542,0.68615333,1528.4,1528.1,20.59874644]
[1674107375961,8.39254584,1528.5,1528.1,20.59874644]
[1674107379954,0.68615333,1528.4,1528.1,20.59874644]
[1674107380159,0.68615333,1528.4,1528.2,2.05987464]
[1674107380428,0.68615333,1528.4,1528.1,20.59874644]
[1674107380598,8.39254584,1528.5,1528.1,20.59874644]
[1674107382320,0.68615333,1528.4,1528.1,20.59874644]
[1674107384900,0.68615333,1528.3,1528.1,9.3397]
[1674107385582,0.68615333,1528.3,1528.1,0.066]
[1674107385899,7.22942333,1528.3,1528.1,0.066]
[1674107392505,0.68615333,1528.3,1528.1,0.066]
[1674107392789,0.68615334,1528.3,1527.9,27.57273338]
[1674107393002,0.68615334,1528.3,1527.9,32.09665745]
[1674107396322,0.68615334,1528.3,1527.9,33.38465745]
[1674107396541,0.68615334,1528.3,1527.9,39.92958745]
[1674107396712,0.68615334,1528.3,1528.0,4.99295875]
[1674107396925,0.68615334,1528.3,1528.0,1.0]
[1674107397485,0.68615334,1528.3,1527.9,34.38606733]
[1674107397868,0.68615334,1528.3,1528.0,2.1366425]
[1674107398064,0.68615334,1528.3,1527.9,34.38606733]
[1674107398277,0.68615334,1528.3,1528.0,2.13664266]
[1674107398480,0.68615334,1528.3,1528.0,1.0]
[1674107399173,0.68615334,1528.3,1527.9,34.38606733]
[1674107399386,0.68615334,1528.3,1528.0,5.57524975]
[1674107399693,0.68615334,1528.3,1528.0,3.43860673]
[1674107400271,0.68615334,1528.3,1527.9,27.84113733]
[1674107400476,0.68615334,1528.3,1528.0,2.13664331]
[1674107400692,0.68615333,1528.3,1528.0,1.0]
[1674107401130,0.68615333,1528.3,1527.9,34.38577733]
[1674107401371,0.68615333,1528.3,1528.0,3.43857773]
[1674107401572,0.68615333,1528.3,1527.9,33.70035]
[1674107402064,8.78275334,1528.4,1528.3,0.84816479]
[1674107402282,0.75015334,1528.4,1528.3,0.84816479]
[1674107406260,0.06400001,1528.4,1528.3,7.39137479]
[1674107406499,0.06400001,1528.4,1528.3,15.32805927]
[1674107407132,0.06400001,1528.4,1528.3,15.3260254]
[1674107408418,0.07280883,1528.5,1528.3,15.3920254]
[1674107411036,0.75896216,1528.5,1528.3,0.06613092]
[1674107417403,0.75896216,1528.5,1528.3,0.06413092]
[1674107417619,0.75896216,1528.5,1528.3,0.00013092]
[1674107420185,1.75896216,1528.5,1528.3,0.00013092]
[1674107420588,0.75896216,1528.5,1528.3,0.00013092]
[1674107421684,7.30133216,1528.5,1528.3,0.00013092]
[1674107425685,7.36533217,1528.5,1528.3,0.00013092]
[1674107426291,8.39254584,1528.5,1528.3,0.00013092]
[1674107426911,7.36533217,1528.5,1528.3,0.00013092]
[1674107433088,0.82296217,1528.5,1528.3,2.26962401]
[1674107433302,0.13680884,1528.5,1528.4,2.578]
[1674107435193,0.07480883,1528.5,1528.4,2.578]
[1674107435455,0.07280883,1528.5,1528.4,1.289]
[1674107442654,0.07280883,1528.5,1528.3,2.26762401]
[1674107445704,0.07280883,1528.5,1528.3,0.98162401]
[1674107445916,0.07280883,1528.5,1528.3,0.00013092]
[1674107446332,0.75896216,1528.5,1528.3,0.00013092]
[1674107450271,0.07280883,1528.5,1528.3,13.08641092]
[1674107450855,0.07280883,1528.5,1528.3,13.15241092]
[1674107452582,0.75896216,1528.5,1528.3,0.06613092]
[1674107455863,0.07280883,1528.5,1528.3,0.06613092]
[1674107458560,0.07280883,1528.5,1528.3,0.00013092]
[1674107460345,0.75896216,1528.5,1528.3,0.00013092]
[1674107462499,0.07280883,1528.5,1528.3,0.00013092]
[1674107462654,0.07280883,1528.5,1528.3,2.46196322]
[1674107463380,0.75896216,1528.5,1528.3,9.00510322]
[1674107465684,0.75896216,1528.5,1528.3,9.0049723]
[1674107467258,0.61891376,1528.5,1528.3,9.0049723]
[1674107469444,1.02721367,1528.6,1528.3,9.0049723]
[1674107475848,1.02721367,1528.6,1528.3,9.0709723]
[1674107476372,1.02721367,1528.6,1528.3,2.5278323]
[1674107477258,0.68603746,1528.5,1528.3,2.5278323]
[1674107480363,1.71325113,1528.6,1528.4,0.25278323]
[1674107480954,0.68603746,1528.6,1528.4,0.25278323]
[1674107481196,0.68603746,1528.6,1528.3,12.06077166]
[1674107481412,1.71325113,1528.6,1528.3,12.06077166]
[1674107484303,0.68603746,1528.5,1528.3,12.06077166]
[1674107485467,0.68603746,1528.5,1528.3,10.3560223]
[1674107486467,0.68603746,1528.5,1528.4,2.277]
[1674107486681,8.74137635,1528.7,1528.5,7.22400339]
[1674107486875,0.81117635,1528.7,1528.5,7.22400339]
[1674107488078,0.81117635,1528.7,1528.5,13.76636339]
[1674107488255,0.12513889,1528.7,1528.5,13.76636339]
[1674107489898,0.12513889,1528.7,1528.5,15.47076666]
[1674107490106,0.12513889,1528.7,1528.6,8.08900667]
[1674107490979,0.12513889,1528.7,1528.6,1.54707667]
[1674107492341,0.12513889,1528.7,1528.6,14.95875426]
[1674107492509,0.06113888,1528.7,1528.6,21.56668426]
[1674107493520,0.06113888,1528.7,1528.6,20.56668426]
[1674107499239,0.06113888,1528.7,1528.6,10.73300667]
[1674107500427,0.06113888,1528.7,1528.6,9.44400667]
[1674107500630,0.06113888,1528.7,1528.6,15.98593667]
[1674107500839,0.06113888,1528.7,1528.6,9.44400667]
[1674107502554,0.06113888,1528.7,1528.6,15.98593667]
[1674107505839,0.06113888,1528.7,1528.6,14.69693667]
[1674107507391,0.06113888,1528.7,1528.6,15.98593667]
[1674107507784,0.05840737,1528.7,1528.6,15.98593667]
[1674107512146,0.07281557,1528.8,1528.7,1.0]
[1674107512460,0.07281557,1528.8,1528.7,15.68159367]
[1674107516293,0.07281557,1528.8,1528.7,14.68159367]
[1674107519492,0.07281557,1528.8,1528.7,14.74759367]
[1674107527141,1e-08,1528.8,1528.7,14.74759367]
[1674107531751,1e-08,1528.8,1528.7,14.74477103]
[1674107534167,1e-08,1528.8,1528.7,15.8809065]
[1674107534929,1e-08,1528.8,1528.7,17.58508487]
[1674107535156,1e-08,1528.8,1528.7,15.8809065]
[1674107536950,1e-08,1528.8,1528.7,17.1659065]
[1674107537481,1e-08,1528.8,1528.7,18.87009006]
[1674107538051,0.06113888,1528.9,1528.8,0.84799999]
[1674107538283,0.06113888,1528.9,1528.8,10.42942173]
[1674107538744,0.06113888,1528.9,1528.8,9.42942173]
[1674107539267,0.06113888,1528.9,1528.8,6.54306999]
[1674107539419,0.06113888,1528.9,1528.8,0.00199999]
[1674107539420,0.74717634,1528.9,1528.8,0.00199999]
[1674107539880,0.74717634,1528.9,1528.8,6.54306999]
[1674107540261,0.74717634,1528.9,1528.8,0.00199999]
[1674107540695,0.74717634,1528.9,1528.8,6.54306999]
[1674107542829,1.08835255,1528.9,1528.8,0.00199999]
[1674107543040,1.4154735,1528.9,1528.8,0.00199999]
[1674107543782,2.10095526,1528.9,1528.8,0.00199999]
[1674107544781,1.07374159,1528.9,1528.8,0.00199999]
[1674107545146,1.77383431,1528.9,1528.8,0.00199999]
[1674107549320,0.74662064,1528.9,1528.8,0.00199999]
[1674107549560,0.74662064,1528.9,1528.8,0.84799999]
[1674107550781,0.74662064,1528.9,1528.8,0.00199999]
[1674107555130,0.74662064,1528.9,1528.8,0.84799999]
[1674107555360,0.74662064,1528.9,1528.8,0.00199999]
[1674107561489,0.00044484,1528.8,1528.7,6.60749]
[1674107561704,0.00044484,1528.8,1528.7,9.469705]
[1674107565219,0.74662064,1528.9,1528.7,9.469705]
[1674107566049,0.06113888,1528.9,1528.7,10.469705]
[1674107566284,0.06113888,1528.9,1528.7,20.00149931]
[1674107566595,0.06113888,1528.9,1528.8,9.54121993]
[1674107570897,0.06113888,1528.9,1528.8,9.55321993]
[1674107571110,0.06113888,1528.9,1528.8,9.60721993]
[1674107572160,1e-08,1528.9,1528.8,17.28434288]
[1674107572333,1e-08,1528.9,1528.8,16.14828993]
[1674107580100,1e-08,1528.9,1528.8,15.14828993]
[1674107583617,1e-08,1528.9,1528.8,8.60721993]
[1674107588205,1e-08,1528.9,1528.8,15.14828993]
[1674107589064,1e-08,1528.9,1528.8,16.28434148]
[1674107589272,1e-08,1528.9,1528.8,15.14828993]
[1674107590254,1e-08,1528.9,1528.8,16.2843365]
[1674107590573,1e-08,1528.9,1528.8,15.14828993]
[1674107592437,1e-08,1528.9,1528.8,16.28434271]
[1674107592646,1e-08,1528.9,1528.8,15.14828993]
[1674107593242,1e-08,1528.9,1528.8,16.28433983]
[1674107594557,0.06171646,1529.0,1528.9,1.59999999]
[1674107594732,0.06171646,1529.0,1528.9,19.60148156]
[1674107596730,0.06171646,1529.0,1528.9,20.73744784]
[1674107596924,0.06171646,1529.0,1528.9,20.88848156]
[1674107600104,0.06171646,1529.0,1528.9,20.89048156]
[1674107600312,0.06171646,1529.0,1528.9,20.95448156]
[1674107600504,0.06171646,1529.0,1528.9,27.9852357]
[1674107600715,0.06171646,1529.0,1528.9,28.34837111]
[1674107601961,0.06171646,1529.0,1528.9,24.84283748]
[1674107602442,0.06171646,1529.0,1528.9,25.07283748]
[1674107602588,0.06171646,1529.0,1528.9,24.70970207]
[1674107603381,0.06171646,1529.0,1528.9,28.57860894]
[1674107604334,0.06171646,1529.0,1528.9,24.15741015]
[1674107604482,0.06171646,1529.0,1528.9,22.50727474]
[1674107604939,0.06171646,1529.0,1528.9,23.19270207]
[1674107605161,0.06171646,1529.0,1528.9,22.50727474]
[1674107606811,0.06171646,1529.0,1528.9,20.80339883]
[1674107611961,0.06565325,1529.1,1528.9,20.80339883]
[1674107611962,1e-08,1529.1,1528.9,20.80339883]
[1674107612240,1e-08,1529.1,1528.9,19.66748156]
[1674107612396,1e-08,1529.1,1529.0,1.96674816]
[1674107612620,1e-08,1529.1,1529.0,15.04718816]
[1674107612834,1e-08,1529.1,1529.0,15.11318816]
[1674107613547,1e-08,1529.1,1529.0,8.57296816]
[1674107614185,1e-08,1529.1,1529.0,15.11318816]
[1674107622090,1e-08,1529.1,1529.0,18.40493575]
[1674107626700,1e-08,1529.1,1529.0,13.14644]
[1674107626911,1.28900001,1529.1,1529.0,0.066]
[1674107627259,1.28900001,1529.1,1528.9,0.06799999]
[1674107627434,1.28900001,1529.1,1528.9,0.00199999]
[1674107633760,1.28900001,1529.1,1528.9,6.54261999]
[1674107634074,1.28900001,1529.1,1528.9,6.60861999]
[1674107635049,1.97448177,1529.1,1528.9,6.60861999]
[1674107635407,1.97448177,1529.1,1528.9,0.06799999]
[1674107635581,2.51798608,1529.1,1528.8,21.71762411]
[1674107639861,1.83250432,1529.1,1528.8,21.71762411]
[1674107640156,2.51798608,1529.1,1528.8,21.71762411]
[1674107640820,9.53100543,1529.0,1528.8,0.004]
[1674107641059,4.28569543,1528.9,1528.5,0.066]
[1674107641203,1.278,1528.6,1528.3,27.11687691]
[1674107641410,1.278,1528.6,1528.4,1.13630324]
[1674107641733,1.278,1528.6,1528.4,2.84075896]
[1674107641896,1.278,1528.6,1528.3,28.82133263]
[1674107642217,1.278,1528.6,1528.4,1.13629537]
[1674107642432,1.289,1528.5,1528.3,27.10692572]
[1674107642587,1.289,1528.5,1528.3,25.40247]
[1674107643354,1.289,1528.5,1528.3,6.60907]
[1674107645051,8.602034,1528.6,1528.3,0.066]
[1674107645369,2.568,1528.4,1528.2,0.08074302]
[1674107645525,0.2568,1528.3,1528.2,0.08074302]
[1674107645737,1.279,1528.4,1528.2,0.08074302]
[1674107645985,1.289,1528.3,1528.2,0.08074302]
[1674107649761,2.578,1528.3,1528.2,0.08074302]
[1674107650796,9.12121,1528.3,1528.2,0.08074302]
[1674107651006,9.18521001,1528.3,1528.2,0.08074302]
[1674107651216,10.88591701,1528.3,1528.2,0.08074302]
[1674107652266,17.42912701,1528.3,1528.2,0.08074302]
[1674107652702,14.85112701,1528.3,1528.2,0.08074302]
[1674107653156,7.62598612,1528.3,1528.2,0.08074302]
[1674107655388,9.16598612,1528.3,1528.2,0.08074302]
[1674107655697,0.06400001,1528.3,1528.2,0.84874302]
[1674107655889,1.535,1528.4,1528.2,0.84874302]
[1674107656306,16.52132541,1528.5,1528.2,0.08074302]
[1674107656498,8.84032541,1528.5,1528.2,0.08074302]
[1674107657147,0.88403254,1528.4,1528.2,0.08074302]
[1674107657365,7.42685254,1528.4,1528.2,0.08074302]
[1674107657576,1.539,1528.3,1528.2,0.08074302]
[1674107657758,18.11622,1528.3,1528.2,0.08074302]
[1674107657988,18.18022001,1528.3,1528.2,0.08074302]
[1674107658181,22.27392726,1528.3,1528.2,0.08074302]
[1674107659881,20.74092726,1528.3,1528.2,0.08074302]
[1674107666887,24.38320838,1528.3,1528.2,0.08074302]
[1674107667048,20.74092726,1528.3,1528.2,0.08074302]
[1674107669662,27.67495597,1528.3,1528.2,0.08074302]
[1674107669917,28.55295597,1528.3,1528.2,0.08074302]
[1674107670518,37.67795597,1528.3,1528.2,0.08074302]
[1674107670922,34.03567485,1528.3,1528.2,0.08074302]
[1674107675303,25.18322001,1528.3,1528.2,0.08074302]
[1674107675452,17.10101001,1528.3,1528.2,0.84874302]
[1674107675824,7.97601001,1528.3,1528.2,0.84874302]
[1674107676250,7.97601001,1528.3,1528.2,0.08074302]
[1674107676251,7.48521001,1528.3,1528.2,0.08074302]
[1674107676399,0.94200001,1528.3,1528.2,0.84874302]
[1674107676609,0.878,1528.3,1528.2,0.84874302]
[1674107679809,0.878,1528.3,1528.2,0.94239691]
[1674107680004,0.06400001,1528.4,1528.2,0.94239691]
[1674107684858,0.06400001,1528.4,1528.2,0.17439691]
[1674107685064,0.06400001,1528.4,1528.2,0.08074302]
[1674107685512,6.60689001,1528.4,1528.2,0.08074302]
[1674107687107,13.14978001,1528.4,1528.2,0.08074302]
[1674107687465,6.60689001,1528.4,1528.2,0.08074302]
[1674107692213,13.14967001,1528.4,1528.2,0.08074302]
[1674107692577,15.48742719,1528.4,1528.2,0.08074302]
[1674107698462,8.94453719,1528.4,1528.2,0.08074302]
[1674107698677,6.60678001,1528.4,1528.2,0.08074302]
[1674107700620,0.06400001,1528.4,1528.2,0.08074302]
[1674107703610,0.06200001,1528.4,1528.2,0.08074302]
[1674107703822,16.14908001,1528.5,1528.2,0.08074302]
[1674107712395,16.83456177,1528.5,1528.2,0.08074302]
[1674107715267,3.74948177,1528.5,1528.2,1.02519964]
[1674107715454,3.06400001,1528.5,1528.2,1.02519964]
[1674107715872,3.06400001,1528.5,1528.2,2.16166519]
[1674107716087,3.06400001,1528.5,1528.2,2.73002817]
[1674107716300,3.74948177,1528.5,1528.2,2.73002817]
[1674107716511,3.74948177,1528.5,1528.2,3.73002817]
[1674107716753,3.06400001,1528.5,1528.2,4.4154555]
[1674107716942,3.06400001,1528.5,1528.2,3.4154555]
[1674107717278,3.06400001,1528.5,1528.3,1.13646513]
[1674107717496,3.06400001,1528.5,1528.2,2.73002817]
[1674107718009,3.06400001,1528.5,1528.2,3.4154555]
[1674107718184,3.06400001,1528.5,1528.3,1.13646161]
[1674107719068,3.74948177,1528.5,1528.2,2.73002817]
[1674107719471,3.06400001,1528.5,1528.2,1.71062697]
[1674107719696,3.06400001,1528.5,1528.2,4.55192126]
[1674107719875,3.06400001,1528.5,1528.2,3.4154555]
[1674107720081,3.06400001,1528.5,1528.3,1.13646337]
[1674107720506,3.06400001,1528.5,1528.2,9.27364817]
[1674107720718,3.0,1528.5,1528.2,9.33964817]
[1674107721136,3.0,1528.5,1528.2,10.0250755]
[1674107721380,3.0,1528.5,1528.2,9.33964817]
[1674107721592,3.0,1528.5,1528.2,2.79602817]
[1674107722940,3.68548176,1528.5,1528.2,2.79602817]
[1674107726126,3.68548176,1528.5,1528.2,1.09119964]
[1674107727856,3.68548176,1528.5,1528.2,2.2276843]
[1674107728190,3.68548176,1528.5,1528.2,2.79602817]
[1674107729749,3.68548176,1528.5,1528.2,2.73002817]
[1674107730595,3.68548176,1528.5,1528.2,7.56881964]
[1674107730846,3.68548176,1528.5,1528.2,2.73002817]
[1674107731697,3.68548176,1528.5,1528.2,1.02519964]
[1674107731861,10.22788176,1528.5,1528.2,0.08074302]
[1674107735014,3.68548176,1528.5,1528.2,0.08074302]
[1674107735866,11.25508543,1528.5,1528.2,0.08074302]
[1674107736542,11.31908544,1528.5,1528.2,0.08074302]
[1674107737302,10.29187177,1528.5,1528.2,0.08074302]
[1674107743049,11.31908544,1528.5,1528.2,0.08074302]
[1674107743577,11.31908544,1528.5,1528.2,2.88868449]
[1674107743785,10.29187177,1528.5,1528.2,2.88868449]
[1674107745620,0.74948177,1528.5,1528.2,2.88868449]
[1674107745831,0.06400001,1528.5,1528.4,1.54]
[1674107746084,1e-08,1528.5,1528.4,10.24783239]
[1674107746458,0.00200001,1528.5,1528.4,10.24983239]
[1674107746709,0.058,1528.5,1528.4,26.00666057]
[1674107746932,0.01,1528.5,1528.4,28.74046868]
[1674107747298,0.01,1528.5,1528.4,38.98826868]
[1674107747622,0.01,1528.5,1528.4,37.9592891]
[1674107747831,0.01,1528.5,1528.4,34.32641584]
[1674107748090,0.01,1528.5,1528.4,35.35539542]
[1674107748252,0.01,1528.5,1528.4,35.10441584]
[1674107748461,0.01,1528.5,1528.4,26.59220851]
[1674107752437,0.01,1528.5,1528.4,27.27763584]
[1674107752604,0.01,1528.5,1528.4,26.59220851]
[1674107753618,0.01,1528.5,1528.4,33.13498851]
[1674107758121,0.01,1528.5,1528.4,31.43015998]
[1674107760226,0.01,1528.5,1528.4,33.13461856]
[1674107760539,0.01,1528.5,1528.4,31.43015998]
[1674107760799,0.01,1528.5,1528.4,24.88737998]
[1674107761222,7.09379001,1528.8,1528.4,24.88737998]
[1674107761420,7.09379001,1528.8,1528.6,1.275]
[1674107761587,9.17988319,1528.8,1528.6,1.275]
[1674107762026,2.63879319,1528.8,1528.6,1.275]
[1674107762480,0.55270001,1528.8,1528.6,1.275]
[1674107765301,0.06200001,1528.8,1528.6,1.275]
[1674107771802,0.06200001,1528.8,1528.6,2.275]
[1674107772685,0.06200001,1528.8,1528.6,1.275]
[1674107776520,0.06200001,1528.8,1528.5,22.13184]
[1674107776761,0.06200001,1528.8,1528.5,26.59142131]
[1674107777006,0.06200001,1528.8,1528.5,27.87842131]
[1674107780098,0.68548176,1528.9,1528.5,27.94442131]
[1674107782410,0.68548176,1528.9,1528.5,29.64880042]
[1674107784510,0.68548176,1528.8,1528.5,29.64880042]
[1674107786610,0.68548176,1528.8,1528.5,30.33422775]
[1674107787261,0.68548176,1528.8,1528.5,29.64880042]
[1674107787473,0.68548176,1528.8,1528.5,23.10649042]
[1674107787683,1.71269543,1528.8,1528.5,23.10649042]
[1674107792349,0.68548176,1528.7,1528.5,23.10649042]
[1674107793184,0.68548176,1528.7,1528.5,16.56436042]
[1674107793404,7.22710176,1528.7,1528.5,0.066]
[1674107793706,8.25431543,1528.7,1528.5,0.066]
[1674107794305,7.22710176,1528.7,1528.5,0.066]
[1674107794520,10.04873728,1528.7,1528.5,0.066]
[1674107794737,9.02152361,1528.7,1528.5,0.066]
[1674107796757,9.06952361,1528.7,1528.5,0.016]
[1674107796948,9.08352362,1528.7,1528.4,10.3138]
[1674107798128,7.28910177,1528.7,1528.4,10.3138]
[1674107798337,8.31631544,1528.7,1528.4,10.3138]
[1674107798859,7.28910177,1528.7,1528.4,10.3138]
[1674107806818,7.28910177,1528.7,1528.4,0.066]
[1674107807023,0.68548176,1528.6,1528.4,0.06251985]
[1674107808410,17.31279229,1528.7,1528.4,0.06251985]
[1674107811630,16.28557862,1528.7,1528.4,0.06251985]
[1674107812152,16.28557862,1528.7,1528.3,8.71221985]
[1674107813245,17.31279229,1528.7,1528.3,8.71221985]
[1674107816416,1.73127923,1528.6,1528.3,8.71221985]
[1674107816574,8.27326923,1528.6,1528.3,8.71221985]
[1674107816781,8.27326923,1528.6,1528.3,0.06251985]
[1674107816782,17.06865467,1528.6,1528.3,0.06251985]
[1674107817145,19.62834,1528.4,1528.3,0.06251985]
[1674107817470,24.20435721,1528.4,1528.3,0.06251985]
[1674107817679,32.61779417,1528.4,1528.3,0.06251985]
[1674107817829,37.22636972,1528.4,1528.2,0.08074302]
[1674107818062,9.45990024,1528.3,1528.2,0.08074302]
[1674107818436,26.01072547,1528.3,1528.2,0.08074302]
[1674107818653,24.64209676,1528.3,1528.2,0.08074302]
[1674107818805,25.6671606,1528.3,1528.2,0.08074302]
[1674107819344,32.5903789,1528.3,1528.2,0.08074302]
[1674107819671,28.95890819,1528.3,1528.2,0.08074302]
[1674107819894,29.59564992,1528.3,1528.2,0.08074302]
[1674107820079,34.59609996,1528.3,1528.2,0.08074302]
[1674107820290,30.96427863,1528.3,1528.2,0.08074302]
[1674107820694,30.3275369,1528.3,1528.2,0.08074302]
[1674107822212,29.6415964,1528.3,1528.2,0.08074302]
[1674107824209,28.61653256,1528.3,1528.2,0.08074302]
[1674107827014,32.59072659,1528.3,1528.2,0.08074302]
[1674107827359,34.59609703,1528.3,1528.2,0.08074302]
[1674107827584,34.82609703,1528.3,1528.2,0.08074302]
[1674107828233,33.45746832,1528.3,1528.2,0.08074302]
[1674107829828,34.82609703,1528.3,1528.2,0.08074302]
[1674107830188,33.45746832,1528.3,1528.2,0.08074302]
[1674107830396,33.51946833,1528.3,1528.2,0.08074302]
[1674107831715,34.20068237,1528.3,1528.2,0.08074302]
[1674107832390,33.17561853,1528.3,1528.2,0.08074302]
[1674107832601,34.20068237,1528.3,1528.2,0.08074302]
[1674107833671,34.80646833,1528.3,1528.2,0.08074302]
[1674107835130,35.48712218,1528.3,1528.2,0.08074302]
[1674107835549,34.80646833,1528.3,1528.2,3.02e-06]
[1674107836204,44.63806498,1528.3,1528.2,3.02e-06]
[1674107836805,43.35106498,1528.3,1528.2,3.02e-06]
[1674107841015,42.32600114,1528.3,1528.2,3.02e-06]
[1674107841215,38.69418274,1528.3,1528.2,3.02e-06]
[1674107841431,37.69418274,1528.3,1528.2,3.02e-06]
[1674107842866,37.20338274,1528.3,1528.2,3.02e-06]
[1674107843531,35.91638274,1528.3,1528.2,3.02e-06]
[1674107846617,35.27964101,1528.3,1528.2,3.02e-06]
[1674107846923,36.94144658,1528.3,1528.2,3.02e-06]
[1674107847139,35.91638274,1528.3,1528.2,3.02e-06]
[1674107848195,35.9132817,1528.3,1528.2,3.02e-06]
[1674107848766,36.93834554,1528.3,1528.2,3.02e-06]
[1674107849562,39.89072215,1528.3,1528.2,3.02e-06]
[1674107849866,36.25784889,1528.3,1528.2,3.02e-06]
[1674107850677,37.6264776,1528.3,1528.2,3.02e-06]
[1674107852036,36.25784889,1528.3,1528.2,3.02e-06]
[1674107852785,36.60141376,1528.3,1528.2,3.02e-06]
[1674107854583,38.3142815,1528.3,1528.2,3.02e-06]
[1674107854774,40.57852605,1528.3,1528.2,3.02e-06]
[1674107855548,36.94565279,1528.3,1528.2,3.02e-06]
[1674107856647,40.91943702,1528.3,1528.2,3.02e-06]
[1674107858283,37.28656376,1528.3,1528.2,3.02e-06]
[1674107858593,40.91943702,1528.3,1528.2,3.02e-06]
[1674107858753,37.28656376,1528.3,1528.2,3.02e-06]
[1674107859758,40.91943702,1528.3,1528.2,3.02e-06]
[1674107860067,37.28656376,1528.3,1528.2,3.02e-06]
[1674107861742,40.91943702,1528.3,1528.2,3.02e-06]
[1674107861974,37.28656376,1528.3,1528.2,3.02e-06]
[1674107862340,38.86565831,1528.3,1528.2,3.02e-06]
[1674107863465,49.42029128,1528.3,1528.0,0.09139257]
[1674107863762,8.91038028,1528.1,1528.0,0.09139257]
[1674107864075,42.01153355,1528.1,1528.0,2.57e-06]
[1674107864287,1.0,1528.0,1527.9,0.09139257]
[1674107864437,29.08542284,1528.0,1527.9,0.09139257]
[1674107864650,29.78416458,1528.0,1527.9,0.09139257]
[1674107866289,28.78416458,1528.0,1527.9,0.09139257]
[1674107870451,27.49716458,1528.0,1527.9,0.09139257]
[1674107876034,28.86451221,1528.0,1527.9,0.09139257]
[1674107876942,28.22777048,1528.0,1527.9,0.09139257]
[1674107878200,26.51724859,1528.0,1527.9,0.09139257]
[1674107879325,28.22777048,1528.0,1527.9,0.09139257]
[1674107879874,26.51724859,1528.0,1527.9,0.09139257]
[1674107880256,27.15399032,1528.0,1527.9,0.09139257]
[1674107882233,27.49716458,1528.0,1527.9,0.09139257]
[1674107882494,28.86400522,1528.0,1527.9,0.09139257]
[1674107883491,27.58800522,1528.0,1527.9,0.09139257]
[1674107883702,22.47151218,1528.0,1527.9,0.09139257]
[1674107886260,21.44632997,1528.0,1527.9,0.09139257]
[1674107886448,23.15685186,1528.0,1527.9,0.09139257]
[1674107887520,23.15685186,1528.0,1527.9,0.08907725]
[1674107888431,21.79001122,1528.0,1527.9,0.08907725]
[1674107888636,25.40592634,1528.0,1527.9,0.08907725]
[1674107888828,21.79001122,1528.0,1527.9,0.08907725]
[1674107889018,23.15704351,1528.0,1527.9,0.08907725]
[1674107889437,19.22855419,1528.0,1527.9,0.08907725]
[1674107889682,17.5180323,1528.0,1527.9,0.94207725]
[1674107890171,18.54331161,1528.0,1527.9,0.94207725]
[1674107890698,11.31533008,1528.0,1527.9,0.94207725]
[1674107891013,0.06200001,1528.0,1527.9,2.33358247]
[1674107896097,0.68355076,1528.1,1527.9,2.33358247]
[1674107896899,0.68355076,1528.1,1528.0,2.562]
[1674107899045,14.85866008,1528.2,1528.0,2.562]
[1674107899218,8.31472008,1528.2,1528.1,1.287]
[1674107899645,8.31409582,1528.2,1528.1,1.287]
[1674107899994,14.17505932,1528.2,1528.1,1.287]
[1674107900895,14.85788095,1528.2,1528.1,1.287]